Workbook

Sheet Sheet1
A1: Gauss-Newton, Gradient-Search and Levenberg-Marquardt algorithms
A2: Nonlinear regression algebra for y = Ae-Gx +B. | M2: parameters
A3: Change current solution in cells M4:M6 to see how the starting values affect current and next solution. | M3: current | N3: change | O3: next | P3: sa | Q3: correlation matrix
A4: Change l-factor to affect gradient-search and Levenberg-Marquardt algorithm.. | L4: A = | M4: 102.554239 | N4: =MMULT(MMULT(MMULT(P10:R12,TRANSPOSE(Jacobian_mat)),y_weight_mat),G12:G32) -> 0.01897541595 | O4: =M4+N4 -> 102.5732145 | P4: =a_stddevs_vec -> 3.918926387 | Q4: =P16:R18/P4:P6/TRANSPOSE(P4:P6) -> 1 | R4: -0.3540071071 | S4: 0.03569995393
A5: Hit "cntl + I" to iterate solution. Hit "cntl + r" to regenerate noise. | H5: algorithm | L5: B = | M5: 3.748777732 | N5: -0.09995117432 | O5: =M5+N5 -> 3.648826557 | P5: 2.745158086 | Q5: -0.3540071071 | R5: 1 | S5: 0.8334065235
L6: G = | M6: 0.1907940911 | N6: -0.0006105903385 | O6: =M6+N6 -> 0.1901835008 | P6: 0.01928703403 | Q6: 0.03569995393 | R6: 0.8334065235 | S6: 1
E7: l = | F7: 1 | L7: c2= | M7: =MMULT(TRANSPOSE(G12:G32),MMULT(y_weight_mat,G12:G32)) -> 27.51930095 | N7: =O7-M7 -> -0.001449190504 | O7: =MMULT(TRANSPOSE(H12:H32),MMULT(y_weight_mat,H12:H32)) -> 27.51785176
B8: Atrue = | C8: 100 | E8: l-factor = | F8: 10
B9: Btrue = | C9: 5 | I9: Jacobian matrix | M9: [X] (l modified) | P9: [X]-1 (l modified) | S9: Marquardt multiplier
B10: Gtrue = | C10: 0.2 | E10: yfit | G10: Dy | I10: [Jya] | M10: =S10:U12*M16:O18 -> 0.1260521949 | N10: 0.2260959278 | O10: -27.7339191 | P10: =MINVERSE(M10:O12) -> 15.35798403 | Q10: -3.80843411 | R10: 0.002698361975 | S10: 1 | T10: 1 | U10: 1
A11: noise | B11: x | C11: y | D11: sy | E11: current | F11: next | G11: current | H11: next | I11: dy/dA | J11: dy/dB | K11: dy/dG | M11: 0.2260959278 | N11: 0.84 | O11: -101.2810726 | P11: -3.80843411 | Q11: 7.535892919 | R11: 0.04412550631 | S11: 1 | T11: 1 | U11: 1
A12: 4.916416407 | B12: 0 | C12: =$C$8*EXP(-$C$10*B12)+$C$9+A12 -> 109.9164164 | D12: 5 | E12: =$M$4*EXP(-$M$6*B12)+$M$5 -> 106.3030168 | F12: =$O$4*EXP(-$O$6*B12)+$O$5 -> 106.222041 | G12: =C12-$M$4*EXP(-$M$6*B12)-$M$5 -> 3.61339963 | H12: =C12-$O$4*EXP(-$O$6*B12)-$O$5 -> 3.694375388 | I12: =EXP(-$M$6*B12) -> 1 | J12: 1 | K12: =-B12*$M$4*EXP(-$M$6*B12) -> 0 | M12: -27.7339191 | N12: -101.2810726 | O12: 14903.41005 | P12: 0.002698361975 | Q12: 0.04412550631 | R12: 0.0003719896816 | S12: 1 | T12: 1 | U12: 1
A13: -5.36285758 | B13: 1 | C13: 81.51021773 | D13: 5 | E13: 88.48962375 | F13: =$O$4*EXP(-$O$6*B13)+$O$5 -> 88.45711934 | G13: -6.979406027 | H13: -6.946901608 | I13: 0.8263027137 | J13: 1 | K13: -84.74084602
A14: 4.672809839 | B14: 2 | C14: 76.70481444 | D14: 5 | E14: 73.77036876 | F14: 73.76895062 | G14: 2.934445683 | H14: 2.935863818 | I14: 0.6827761746 | J14: 1 | K14: -140.0431821 | M14: Current
A15: 1.117168665 | B15: 3 | C15: 60.99833227 | D15: 5 | E15: 61.60780841 | F15: 61.62466404 | G15: -0.6094761404 | H15: -0.626331765 | I15: 0.5641798059 | J15: 1 | K15: -173.577092 | M15: [X] (curvature matrix) | P15: [X]-1 (covariance matrix)
A16: 2.563968897 | B16: 4 | C16: 52.49686531 | D16: 5 | E16: 51.5578518 | F16: 51.58367802 | G16: 0.9390135124 | H16: 0.9131872883 | I16: 0.4661833047 | J16: 1 | K16: -191.2362963 | M16: =MMULT(MMULT(TRANSPOSE(Jacobian_mat),y_weight_mat),Jacobian_mat) -> 0.1260521949 | N16: 0.2260959278 | O16: -27.7339191 | P16: =MINVERSE(M16:O18) -> 15.35798403 | Q16: -3.80843411 | R16: 0.002698361975
A17: 2.606960535 | B17: 5 | C17: 44.39490465 | D17: 5 | E17: 43.25354537 | F17: 43.28171647 | G17: 1.141359282 | H17: 1.113188178 | I17: 0.3852085297 | J17: 1 | K17: -197.5238382 | M17: 0.2260959278 | N17: 0.84 | O17: -101.2810726 | P17: -3.80843411 | Q17: 7.535892919 | R17: 0.04412550631
A18: -0.1601064205 | B18: 6 | C18: 34.95931477 | D18: 5 | E18: 36.39167443 | F18: 36.41759323 | G18: -1.432359664 | H18: -1.458278461 | I18: 0.3182988534 | J18: 1 | K18: -195.8573802 | M18: -27.7339191 | N18: -101.2810726 | O18: 14903.41005 | P18: 0.002698361975 | Q18: 0.04412550631 | R18: 0.0003719896816
A19: 0.3565180302 | B19: 7 | C19: 30.01621442 | D19: 5 | E19: 30.72169186 | F19: 30.74228534 | G19: -0.7054774354 | H19: -0.7260709151 | I19: 0.2630112064 | J19: 1 | K19: -188.8103989
A20: -7.249416113 | B20: 8 | C20: 17.94023569 | D20: 5 | E20: 26.03656987 | F20: 26.04989878 | G20: -8.096334185 | H20: -8.109663089 | I20: 0.2173268735 | J20: 1 | K20: -178.3023371 | M20: True value (evaluated at 100,5,0.2)
A21: 13.11584115 | B21: 9 | C21: 34.64572997 | D21: 5 | E21: 22.16524086 | F21: 22.17019884 | G21: 12.48048911 | H21: 12.47553113 | I21: 0.1795777854 | J21: 1 | K21: -165.7481681 | M21: [X] | P21: [X]-1
A22: -4.95396018 | B22: 10 | C22: 13.57956814 | D22: 5 | E22: 18.96635119 | F22: 18.96243422 | G22: -5.386783047 | H22: -5.382866079 | I22: 0.1483856114 | J22: 1 | K22: -152.1757346 | M22: 0.1213025082 | N22: 0.2173572054 | O22: -24.60647465 | P22: 15.46807626 | Q22: -3.314504563 | R22: 0.006335121162
A23: 4.634929895 | B23: 11 | C23: 20.71524573 | D23: 5 | E23: 16.32309998 | F23: 16.3102307 | G23: 4.392145756 | H23: 4.405015033 | I23: 0.1226114333 | J23: 1 | K23: -138.3175447 | M23: 0.2173572054 | N23: 0.84 | O23: -91.22382682 | P23: -3.314504563 | Q23: 6.72367286 | R23: 0.04305293792
A24: 0.4762613773 | B24: 12 | C24: 14.54805671 | D24: 5 | E24: 14.13897432 | F24: 14.1173692 | G24: 0.4090823813 | H24: 0.4306875083 | I24: 0.1013141601 | J24: 1 | K24: -124.6823591 | M24: -24.60647465 | N24: -91.22382682 | O24: 12352.25566 | P24: 0.006335121162 | Q24: 0.04305293792 | R24: 0.0004115312127
A25: -1.336215734 | B25: 13 | C25: 11.09114209 | D25: 5 | E25: 12.33422537 | F25: 12.30429508 | G25: -1.243083285 | H25: -1.213152995 | I25: 0.08371616542 | J25: 1 | K25: -111.6108193
A26: 2.79124856 | B26: 14 | C26: 13.87225482 | D26: 5 | E26: 10.84295642 | F26: 10.80523199 | G26: 3.029298407 | H26: 3.067022837 | I26: 0.06917489467 | J26: 1 | K26: -99.31850157 | M26: Fractional difference of current from true value
A27: -1.047595739 | B27: 15 | C27: 8.931111097 | D27: 5 | E27: 9.610716829 | F27: 9.565795524 | G27: -0.6796057319 | H27: -0.6346844269 | I27: 0.05715940318 | J27: 1 | K27: -87.92908647 | M27: [X] | P27: [X]-1
A28: 5.741001368 | B28: 16 | C28: 14.81722177 | D28: 5 | E28: 8.592513915 | F28: 8.541020286 | G28: 6.22470785 | H28: =C28-$O$4*EXP(-$O$6*B28)-$O$5 -> 6.276201479 | I28: 0.04723096996 | J28: 1 | K28: -77.49977894 | M28: =(M16-M22)/M22 -> 0.03915571758 | N28: 0.04020442939 | O28: 0.1270984362 | P28: -0.00711738389 | Q28: 0.1490206265 | R28: -0.5740630832
A29: -13.24921012 | B29: 17 | C29: -4.911883123 | D29: 5 | E29: 7.751170085 | F29: 7.693728535 | G29: -12.66305321 | H29: -12.60561166 | I29: 0.03902707865 | J29: 1 | K29: -68.04067 | M29: =(M17-M23)/M23 -> 0.04020442939 | N29: 2.643388154e-16 | O29: 0.1102480145 | P29: 0.1490206265 | Q29: 0.1208000562 | R29: 0.02491278046
A30: 3.0755198 | B30: 18 | C30: 10.80789204 | D30: 5 | E30: 7.055965394 | F30: 6.993181446 | G30: 3.751926651 | H30: 3.814710599 | I30: 0.032248181 | J30: 1 | K30: -59.52937793 | M30: =(M18-M24)/M24 -> 0.1270984362 | N30: 0.1102480145 | O30: 0.2065334838 | P30: -0.5740630832 | Q30: 0.02491278046 | R30: -0.09608391751
A31: -9.191058874 | B31: 19 | C31: -1.953981689 | D31: 5 | E31: 6.481515872 | F31: 6.413963928 | G31: -8.43549756 | H31: -8.367945617 | I31: 0.02664675947 | J31: 1 | K31: -51.92202467
A32: 6.044803858 | B32: 20 | C32: 12.87636775 | D32: 5 | E32: 6.006846673 | F32: 5.935062598 | G32: 6.869521074 | H32: 6.941305149 | I32: 0.02201828966 | J32: 1 | K32: -45.16137882
